bitfinex/quotes_ETHUSD_20220201
["timestamp","ask_amount","ask_price","bid_price","bid_amount"]
[1643745908151,2.23337832,2765.4,2764.2,4.3208]
[1643745908449,1.52525584,2765.3,2764.2,6.07532395]
[1643745908649,0.32573943,2764.3,2764.2,2.00452395]
[1643745908851,2.19044874,2765.2,2764.2,1.75452395]
[1643745909048,1.52585637,2765.1,2764.2,1.75452395]
[1643745909250,0.1807,2765.0,2764.2,1.75452395]
[1643745909447,1.52585637,2764.9,2764.2,1.75452395]
[1643745909850,0.1807,2765.2,2764.0,1.80899]
[1643745909851,0.32203274,2764.3,2764.0,1.80899]
[1643745910048,0.32203274,2764.3,2764.0,2.80899]
[1643745910247,0.18717162,2765.0,2764.0,2.80899]
[1643745910461,0.18717162,2765.0,2764.1,0.90442]
[1643745910648,0.1807,2765.2,2764.3,0.90435]
[1643745910848,1.52581509,2765.1,2764.3,0.90435]
[1643745911148,0.1307,2765.0,2764.3,1.20435]
[1643745911350,0.918422,2764.9,2764.3,2.20435]
[1643745911605,0.918422,2764.9,2764.3,1.20435]
[1643745911804,0.918422,2764.9,2764.3,0.90435]
[1643745912008,0.918422,2764.9,2764.5,0.90436]
[1643745912204,0.918422,2764.9,2764.5,2.713097]
[1643745912405,0.32209702,2764.7,2764.5,2.713097]
[1643745913508,0.32209702,2764.7,2764.1,3.6178339]
[1643745913910,3.0,2764.5,2764.1,3.6178339]
[1643745914311,0.80038811,2764.3,2764.1,3.6178339]
[1643745914512,0.80038811,2764.3,2763.7,7.17950877]
[1643745914714,0.36377265,2764.2,2763.8,1.3]
[1643745915111,3.0,2764.5,2763.8,1.3]
[1643745915344,3.0,2764.5,2764.0,0.9046104]
[1643745915747,3.0,2764.5,2764.0,1.8091904]
[1643745916144,3.0,2764.5,2764.0,2.7137504]
[1643745916744,3.0,2764.5,2764.1,1.3]
[1643745916945,3.0,2764.5,2764.4,5.80012942]
[1643745917349,3.0,2764.5,2764.4,7.10012942]
[1643745917551,3.0,2764.5,2764.4,5.9]
[1643745917749,3.0,2764.5,2764.4,4.9]
[1643745917949,3.0,2764.5,2764.3,0.9043148]
[1643745918154,3.0,2764.5,2764.3,2.8086248]
[1643745919191,0.1807,2765.7,2764.5,0.90439]
[1643745919393,0.1807,2765.7,2764.6,0.13057]
[1643745919591,1.5,2765.1,2764.6,1.939]
[1643745919892,1.5,2765.1,2764.7,0.3]
[1643745920092,1.5,2765.1,2764.8,0.1807]
[1643745920392,1.5,2765.1,2764.9,3.6166516]
[1643745920797,1.5,2765.1,2765.0,0.3]
[1643745921191,1.5,2765.1,2764.9,3.6166516]
[1643745921393,2.17659525,2765.1,2764.6,1.9893168]
[1643745921592,0.33232128,2764.8,2764.6,0.1807]
[1643745921791,0.1807,2765.0,2764.6,0.1807]
[1643745921991,0.1807,2765.0,2764.6,1.0850799]
[1643745922291,0.1807,2765.0,2764.7,0.3]
[1643745922692,2.16733308,2765.0,2764.7,0.3]
[1643745922983,0.1807,2765.0,2764.4,2.1087163]
[1643745923583,0.1807,2765.0,2764.4,3.0130963]
[1643745923782,0.1807,2765.0,2764.4,4.0130963]
[1643745923983,0.1807,2765.0,2764.4,3.0130963]
[1643745924584,2.18872348,2765.0,2764.4,2.1087163]
[1643745924785,2.16936692,2765.0,2764.4,2.1087163]
[1643745925083,0.1807,2765.0,2764.4,2.1087163]
[1643745925287,0.31940698,2764.5,2764.4,1.8087163]
[1643745925988,0.1807,2764.8,2764.4,1.8087163]
[1643745926186,0.1807,2765.0,2764.4,1.8087163]
[1643745926385,0.1807,2765.0,2764.4,2.1087163]
[1643745926802,0.1807,2765.0,2764.1,3.6177679]
[1643745926803,0.93030831,2764.5,2764.1,1.8088779]
[1643745927002,0.93030831,2764.5,2764.0,2.0589]
[1643745927003,0.93030831,2764.5,2763.9,1.08531]
[1643745927204,0.1807,2764.4,2763.9,1.08531]
[1643745927405,0.52,2764.6,2763.9,1.08531]
[1643745927607,0.1807,2764.5,2763.9,1.08531]
[1643745928007,0.39111555,2764.1,2763.9,1.08531]
[1643745928207,0.39111555,2764.1,2763.9,1.9899327]
[1643745928409,1.09657223,2764.5,2763.9,1.9899327]
[1643745928611,1.09657223,2764.5,2763.9,1.8092327]
[1643745929209,3.11855025,2764.5,2763.9,1.8092327]
[1643745929411,3.11855025,2764.5,2763.9,0.9046227]
[1643745929910,0.33561155,2764.0,2763.9,0.9046227]
[1643745930736,0.33561155,2764.0,2763.9,1.2046227]
[1643745931736,0.33561155,2764.0,2763.9,0.9046227]
[1643745931935,0.33561155,2764.0,2763.7,1.04290657]
[1643745932235,3.13639176,2764.5,2763.7,1.04290657]
[1643745932436,1.09657223,2764.5,2763.7,1.04290657]
[1643745932640,1.09657223,2764.5,2763.7,1.94755657]
[1643745932839,3.12165059,2764.5,2763.7,1.04290657]
[1643745933042,1.09657223,2764.5,2763.7,1.04290657]
[1643745933442,3.16137223,2764.5,2763.7,1.04290657]
[1643745933747,0.31753878,2764.2,2763.7,1.04290657]
[1643745935793,1.97448591,2764.1,2763.7,0.9047066]
[1643745935997,1.97448591,2764.1,2763.5,3.0068]
[1643745935998,2.15538591,2764.1,2763.5,3.0068]
[1643745936193,1.99783379,2764.0,2763.4,0.90476]
[1643745936500,0.1809,2763.9,2763.4,0.90476]
[1643745936692,0.7009,2764.1,2763.4,0.90476]
[1643745936892,2.00154559,2764.0,2763.4,0.90476]
[1643745937295,0.7009,2764.1,2763.4,0.90476]
[1643745937695,0.7009,2764.1,2763.5,0.3]
[1643745937941,0.1809,2764.1,2763.5,0.3]
[1643745938141,0.1809,2764.1,2763.6,0.90462]
[1643745938339,0.31753878,2764.2,2763.6,0.90462]
[1643745938540,0.31753878,2764.2,2763.8,0.3]
[1643745939339,0.1809,2764.4,2763.8,0.3]
[1643745939541,4.03672,2764.9,2763.8,0.3]
[1643745939543,0.1807,2764.7,2763.9,0.90457]
[1643745939742,0.01284491,2765.5,2763.9,0.90457]
[1643745939745,0.1807,2764.8,2764.5,0.92471281]
[1643745939948,0.1807,2765.2,2764.5,0.92471281]
[1643745940140,0.1807,2765.5,2764.5,1.22471281]
[1643745940440,0.1807,2765.5,2764.5,2.12898281]
[1643745940641,1.52575856,2765.4,2764.5,2.12898281]
[1643745941041,1.00191345,2765.3,2764.5,2.12898281]
[1643745941690,0.1807,2765.3,2764.5,1.22471281]
[1643745941986,0.1807,2765.3,2764.7,1.8085]
[1643745942186,0.1807,2765.7,2764.8,0.9042565]
[1643745942388,1.52577373,2765.6,2764.8,1.2042565]
[1643745942586,0.42529847,2765.1,2764.8,1.2042565]
[1643745942788,0.1807,2765.5,2764.8,1.2042565]
[1643745942992,2.0,2765.8,2764.8,1.2042565]
[1643745942993,0.74253368,2765.3,2764.8,1.2042565]
[1643745943391,0.1807,2765.2,2764.8,1.2042565]
[1643745943592,0.74253368,2765.3,2764.8,1.2042565]
[1643745943794,0.74253368,2765.3,2764.8,0.9042565]
[1643745943995,0.32149438,2765.1,2764.8,1.2042565]
[1643745944397,0.1807,2765.7,2764.8,1.2042565]
[1643745944596,1.52576173,2765.6,2764.8,1.2042565]
[1643745944799,0.1807,2765.5,2764.8,1.2042565]
[1643745944999,1.52576173,2765.4,2764.8,1.2042565]
[1643745945345,0.59623327,2765.3,2764.8,1.2042565]
[1643745945845,0.41553327,2765.3,2764.8,1.5042565]
[1643745947447,1.52578029,2765.2,2764.8,1.5042565]
[1643745948157,0.41553327,2765.3,2764.8,1.5042565]
[1643745948355,1.52578785,2765.2,2764.8,1.5042565]
[1643745948556,3.52578785,2765.2,2764.8,0.9042565]
[1643745948756,0.58265327,2765.3,2764.4,1.8089717]
[1643745948956,0.1807,2765.2,2764.4,1.8089717]
[1643745949198,0.7007,2765.2,2764.4,1.8089717]
[1643745949901,0.7007,2765.2,2764.4,2.1089717]
[1643745950500,0.85700974,2765.0,2764.4,2.1089717]
[1643745950701,0.1807,2764.9,2764.4,2.1089717]
[1643745950904,0.1807,2764.9,2764.2,3.85714835]
[1643745951101,0.41837986,2764.5,2764.2,3.0275]
[1643745951302,0.41837986,2764.5,2763.9,3.8899]
[1643745951602,0.41837986,2764.5,2763.8,5.0558]
[1643745951802,0.41837986,2764.5,2763.9,1.0]
[1643745952402,0.41837986,2764.5,2763.8,0.3]
[1643745952602,0.41837986,2764.5,2763.7,0.7645149]
[1643745952603,1.18524141,2764.5,2763.7,0.7645149]
[1643745952846,1.18524141,2764.5,2763.7,1.0645149]
[1643745954242,1.18524141,2764.5,2763.6,0.1807]
[1643745955247,0.1807,2764.9,2763.7,0.42719973]
[1643745955449,0.1807,2764.9,2763.7,0.90452]
[1643745955650,1.35761484,2765.2,2763.7,0.90452]
[1643745955651,0.1807,2765.1,2763.7,1.20452]
[1643745955849,0.1807,2765.1,2763.7,2.60104739]
[1643745956348,0.92501511,2764.9,2764.1,0.73324618]
[1643745956605,0.33153443,2764.5,2763.9,1.1758]
[1643745957104,0.33153443,2764.5,2763.8,1.0]
[1643745957408,0.33153443,2764.5,2763.9,0.90447]
[1643745958206,0.33153443,2764.5,2763.7,0.1807]
[1643745958207,0.33153443,2764.5,2763.7,1.88636664]
[1643745958805,0.33153443,2764.5,2763.7,2.18636664]
[1643745959408,0.1807,2764.8,2763.9,0.90447]
[1643745960011,0.1807,2764.8,2764.0,2.16531768]
[1643745960210,0.1807,2765.1,2764.0,2.17795793]
[1643745960457,0.41297147,2765.1,2764.3,0.33003897]
[1643745960655,0.41297147,2765.1,2764.4,4.12884344]
[1643745961057,0.41297147,2765.1,2764.5,1.0]
[1643745961255,0.41297147,2765.1,2764.5,2.22269124]
[1643745961455,0.41297147,2765.1,2764.5,1.3]
[1643745961658,0.41297147,2765.1,2764.5,2.20421]
[1643745962061,0.1807,2765.7,2764.5,2.20421]
[1643745962258,0.1807,2765.7,2764.5,4.4588]
[1643745962662,0.1807,2765.7,2764.6,2.0820835]
[1643745963159,0.40169314,2765.2,2764.5,4.1588]
[1643745963361,0.1807,2765.1,2764.5,3.1588]
[1643745963859,0.1807,2765.1,2764.6,1.0]
[1643745964102,0.1807,2765.1,2764.6,1.74549119]
[1643745964286,0.40169314,2765.2,2764.4,1.1707]
[1643745964287,0.40169314,2765.2,2764.5,1.0]
[1643745964487,0.40169314,2765.2,2764.4,3.2557]
[1643745965191,0.40169314,2765.2,2764.6,0.85281303]
[1643745965587,0.40169314,2765.2,2764.6,1.75705303]
[1643745965990,0.1807,2765.3,2764.6,1.75705303]
[1643745966193,0.1807,2765.5,2764.6,0.90424]
[1643745966792,0.85119484,2765.5,2764.4,2.1707]
[1643745966992,0.67049484,2765.4,2764.4,2.1707]
[1643745967193,0.1807,2765.3,2764.4,2.1707]
[1643745967393,0.40459912,2764.8,2764.4,2.1707]
[1643745967594,0.40459912,2764.8,2764.4,1.0]
[1643745967854,0.40459912,2764.8,2764.3,0.1807]
[1643745968262,0.79299836,2765.0,2764.3,0.1807]
[1643745968657,1.52585082,2764.9,2764.3,0.1807]
[1643745969557,1.96562936,2764.9,2764.3,0.1807]
[1643745969756,1.52585082,2764.8,2764.3,0.1807]
[1643745969958,1.52585082,2764.8,2764.2,2.90126587]
[1643745970559,0.1807,2765.3,2764.2,2.90126587]
[1643745970758,1.524926,2765.2,2764.4,0.90431]
[1643745970961,0.1807,2765.1,2764.4,0.90431]
[1643745971361,0.1807,2765.3,2764.4,0.90431]
[1643745971594,0.38326631,2765.0,2764.4,0.90431]
[1643745971999,0.1807,2765.5,2764.4,0.90431]
[1643745972202,1.5,2765.0,2764.4,0.90431]
[1643745972401,1.5,2765.0,2764.6,0.9493272]
[1643745972600,1.5,2765.0,2764.7,0.90421]
[1643745972801,1.5,2765.0,2764.8,2.32080924]
[1643745973003,1.5,2765.0,2764.8,2.74877028]
[1643745973201,1.5,2765.0,2764.8,2.63208104]
[1643745974002,1.5,2765.0,2764.8,1.3]
[1643745975459,1.5,2765.0,2764.8,2.204103]
[1643745975654,0.1807,2765.8,2764.9,8.93057]
[1643745975857,0.1807,2766.3,2765.1,0.90392]
[1643745976058,0.1807,2766.5,2765.2,0.1807]
[1643745976257,0.1807,2766.5,2765.2,1.38]
[1643745976556,0.85119484,2766.5,2765.4,0.90389]
[1643745976756,0.80485516,2766.1,2765.6,0.9039223]
[1643745976960,0.80485516,2766.1,2765.7,0.3]
[1643745977354,0.85119484,2766.5,2765.7,0.3]
[1643745977855,0.33170197,2766.0,2765.7,0.3]
[1643745978055,0.1807,2766.5,2765.7,0.3]
[1643745978056,0.1807,2766.3,2765.7,0.3]
[1643745978262,0.1807,2766.4,2765.7,0.3]
[1643745978456,0.67685612,2766.3,2765.7,0.3]
[1643745979195,0.34718864,2766.1,2765.7,0.3]
[1643745979396,0.85119484,2766.4,2765.7,0.3]
[1643745979597,0.1807,2766.4,2765.8,0.9038699]
[1643745979802,0.00285045,2767.4,2765.8,1.9038699]
[1643745979803,0.1807,2766.6,2765.8,1.9038699]
[1643745980003,0.89890995,2767.1,2765.8,1.9038699]
[1643745980004,0.67049484,2766.7,2765.8,2.0344399]
[1643745980201,0.85119484,2766.6,2765.8,2.0344399]
[1643745980403,0.34686228,2766.2,2765.8,1.0]
[1643745981302,0.34686228,2766.2,2765.7,3.2883]
[1643745981500,0.1807,2766.5,2765.7,3.1076]
[1643745981700,0.85119484,2766.5,2765.7,3.1076]
[1643745981901,0.67049484,2766.6,2765.7,3.1076]
[1643745982101,0.1807,2766.5,2765.9,0.90381]
[1643745982402,0.1807,2766.6,2765.9,1.20381]
[1643745982849,0.1807,2766.6,2765.9,0.3]
[1643745983354,0.67049484,2766.8,2765.8,1.43057]
[1643745983355,0.1807,2766.8,2766.1,1.20377]
[1643745983558,0.1807,2767.0,2766.1,0.6]
[1643745983756,0.1807,2767.0,2766.1,1.3]
[1643745984054,0.1807,2767.0,2766.5,0.88783878]
[1643745984256,1.08918175,2767.1,2766.2,3.57429158]
[1643745984454,1.08918175,2767.1,2766.3,0.90361]
[1643745984654,1.08918175,2767.1,2766.3,1.90361]
[1643745984852,1.08918175,2767.1,2766.3,4.07504458]
[1643745985053,0.41868691,2767.1,2766.3,4.07504458]
[1643745985253,0.85119484,2767.3,2766.3,4.07504458]
[1643745985457,0.1807,2767.3,2766.4,1.2035663]
[1643745985654,0.85119484,2767.6,2766.6,0.25]
[1643745985854,0.67049484,2767.8,2766.7,2.6554369]
[1643745986059,0.1806,2767.7,2766.7,2.6554369]
[1643745986257,0.37548364,2767.7,2766.9,0.35473857]
[1643745986455,0.37548364,2767.7,2767.0,0.9500988]
[1643745986711,0.37548364,2767.7,2767.2,0.90331]
[1643745987712,0.55608364,2767.7,2767.2,0.90331]
[1643745988313,0.85109484,2767.9,2767.2,0.90331]
[1643745988719,0.1806,2767.9,2767.2,0.90331]
[1643745989316,0.3190675,2767.8,2767.3,0.9032932]
[1643745989517,0.1806,2767.9,2767.3,3.02656415]
[1643745989718,0.85109484,2768.2,2767.6,0.90321]
[1643745989922,0.1806,2768.2,2767.6,0.90321]
[1643745990118,0.1806,2768.2,2767.7,0.25]
[1643745990559,0.36671399,2768.0,2767.7,0.25]
[1643745990956,1.52460476,2767.9,2767.7,0.25]
[1643745991555,2.42295014,2767.9,2767.7,0.25]
[1643745991758,1.52460476,2767.8,2767.7,0.25]
[1643745993360,1.52460476,2767.9,2767.7,0.25]
[1643745993560,1.70520476,2767.8,2767.7,0.25]
[1643745994801,1.52460476,2767.8,2767.7,0.25]
[1643745995006,1.52460476,2767.9,2767.7,0.25]
[1643745996207,0.1806,2767.8,2767.7,0.25]
[1643745996406,1.70520476,2767.8,2767.7,0.25]
[1643745996608,1.52460476,2767.8,2767.7,0.25]
[1643745997006,1.52460476,2767.9,2767.7,0.25]
[1643745997205,1.52460476,2767.8,2767.7,0.25]
[1643745997406,1.52460476,2767.9,2767.7,0.25]
[1643745997611,3.0150996,2767.9,2766.9,0.1806]
[1643745997900,1.52460476,2767.8,2766.9,0.1806]
[1643745998094,0.5314573,2767.7,2766.9,0.1806]
[1643745998296,1.52460476,2767.6,2766.9,0.1806]
[1643745998494,3.35141537,2767.0,2766.9,0.1806]
[1643745998694,0.17441175,2767.8,2766.9,0.1806]
[1643745998895,1.52486541,2767.7,2766.9,0.1806]
[1643745999695,1.52486541,2767.8,2766.5,2.3]
[1643745999899,1.52486541,2767.7,2766.7,0.9034382]
[1643746000097,1.19049484,2768.2,2766.8,2.19885641]
[1643746000098,0.40115915,2767.1,2766.8,2.19885641]
[1643746000296,0.40115915,2767.1,2766.7,1.2034382]
[1643746000498,0.85119484,2768.1,2766.7,1.3841382]
[1643746000697,1.52472743,2768.0,2766.7,3.63765901]
[1643746000997,0.1806,2767.9,2766.8,1.90348]
[1643746001197,1.52472743,2767.8,2766.8,1.90348]
[1643746001396,0.1806,2767.7,2766.8,0.90348]
[1643746001595,0.1806,2767.7,2766.8,3.05927255]
[1643746001596,0.38865466,2767.3,2766.8,3.05927255]
[1643746001802,0.38865466,2767.3,2766.8,0.90348]
[1643746002002,0.38865466,2767.3,2766.9,1.0]
[1643746002202,0.38865466,2767.3,2766.8,0.90348]
[1643746002805,0.1806,2767.7,2766.8,1.90348]
[1643746003004,1.52469422,2767.6,2766.8,1.90348]
[1643746003203,1.52469422,2767.6,2766.8,2.74936084]
[1643746003604,1.52469422,2767.6,2767.0,0.9033976]
[1643746003803,0.36640026,2767.4,2767.0,1.2033976]
[1643746004008,0.36640026,2767.4,2766.8,2.74936084]
[1643746004009,0.36640026,2767.4,2766.8,1.90348]
[1643746004204,1.47481215,2767.3,2766.8,0.57700668]
[1643746004408,1.47481215,2767.3,2766.6,1.4806]
[1643746005203,1.47481215,2767.3,2766.8,0.90348]
[1643746005488,0.36640026,2767.4,2766.8,2.1069339]
[1643746006597,0.85109484,2768.0,2766.9,4.06514029]
[1643746006598,0.1806,2768.0,2766.9,4.06514029]
[1643746006895,0.1806,2768.2,2767.3,0.90322]
[1643746007096,0.89890995,2768.7,2767.4,2.25752152]
[1643746007097,0.1806,2768.3,2767.4,2.25752152]
[1643746007294,0.85109484,2768.4,2767.4,1.13057]
[1643746007493,0.85109484,2768.4,2767.4,1.0]
[1643746007494,0.33693417,2767.6,2767.4,1.0]
[1643746007695,0.33693417,2767.6,2767.3,1.20322]
[1643746007994,0.33693417,2767.6,2767.2,1.1806]
[1643746008191,0.33693417,2767.6,2767.2,1.4806]
[1643746008595,0.33693417,2767.6,2767.2,1.3]
[1643746008795,0.33693417,2767.6,2767.1,1.0]
[1643746009001,0.33693417,2767.6,2767.1,1.3]
[1643746009402,0.33693417,2767.6,2767.1,0.3]
[1643746009604,0.33693417,2767.6,2767.2,0.90336]
[1643746009799,0.33693417,2767.6,2767.2,1.20336]
[1643746010100,0.1806,2767.9,2767.2,1.20336]
[1643746010306,0.1806,2768.2,2767.2,2.38396]
[1643746010504,0.1806,2768.3,2767.2,1.38396]
[1643746010703,0.1806,2768.3,2767.2,2.38396]
[1643746011006,0.85109484,2768.3,2767.2,2.38396]
[1643746011203,0.67049484,2768.2,2767.2,2.20336]
[1643746011405,0.42565571,2767.5,2767.2,1.20336]
[1643746011606,0.42565571,2767.5,2767.2,2.20336]
[1643746012307,0.85109484,2768.1,2767.2,2.20336]
[1643746012308,0.84797484,2768.1,2767.2,2.20336]
[1643746012504,0.84797484,2768.1,2767.2,2.05725]
[1643746012955,0.84797484,2768.1,2767.2,1.05725]
[1643746013156,0.84797484,2768.1,2767.2,2.05725]
[1643746013357,0.35821257,2767.4,2767.2,2.05725]
[1643746013760,0.67049484,2768.0,2767.2,2.05725]
[1643746013958,0.1806,2767.9,2767.2,2.05725]
[1643746014156,0.1806,2768.0,2767.2,2.05725]
[1643746014558,0.1806,2768.1,2767.2,2.05725]
[1643746014759,0.98838143,2768.1,2767.2,1.05725]
[1643746014962,0.41444066,2767.8,2767.2,2.05549]
[1643746015357,0.98838143,2768.1,2767.2,1.97518952]
[1643746015558,0.80778143,2768.1,2767.2,3.15578952]
[1643746015959,0.98838143,2768.1,2767.2,3.15578952]
[1643746016464,0.33123932,2767.9,2767.2,2.68188683]
[1643746016706,0.1806,2768.1,2767.5,0.01294037]
[1643746016903,0.67049484,2768.4,2767.5,0.49354037]
[1643746017103,0.67049484,2768.3,2767.5,0.31294037]
[1643746017705,0.31633659,2767.7,2767.5,0.31294037]
[1643746017906,0.31633659,2767.7,2767.5,1.2031859]
[1643746018106,0.31633659,2767.7,2767.5,0.9031859]
[1643746018304,0.31633659,2767.7,2767.6,0.90319]
[1643746018506,0.31633659,2767.7,2767.4,1.4806]
[1643746018909,1.22130481,2767.7,2767.4,0.4806]
[1643746019117,1.22130481,2767.7,2767.4,1.1806]
[1643746019406,1.22130481,2767.7,2767.3,0.3]
[1643746019606,1.22130481,2767.7,2767.2,0.43819997]
[1643746019806,0.31633659,2767.7,2767.2,0.13819997]
[1643746020011,0.98683143,2767.7,2767.2,0.13819997]
[1643746020647,0.1806,2767.9,2767.2,0.13819997]
[1643746020850,0.1806,2767.9,2767.2,1.94468997]
[1643746021046,0.1806,2768.0,2767.4,0.75264065]
[1643746021246,0.1806,2768.0,2767.4,1.05264065]
[1643746021946,0.1806,2768.0,2767.3,1.13057]
[1643746021947,0.32234769,2767.8,2767.3,1.43057]
[1643746022145,0.32234769,2767.8,2767.4,0.90327]
[1643746023754,0.32234769,2767.8,2766.8,2.05674]
[1643746023755,6.8,2767.7,2766.8,2.05674]
[1643746023957,6.8,2767.7,2766.2,0.144531]
[1643746023958,0.67049484,2767.5,2766.2,0.144531]
[1643746024217,0.01240136,2767.0,2766.2,0.144531]
[1643746024418,0.01240136,2767.0,2765.9,0.1807]
[1643746024419,0.67049484,2766.8,2766.0,0.25]
[1643746024634,0.67049484,2766.8,2765.0,0.5]
[1643746024635,0.99999999,2766.4,2765.0,0.5]
[1643746024813,0.99999999,2766.0,2765.2,0.25]
[1643746025018,0.99999999,2766.0,2765.0,0.5]
[1643746025019,2.54327571,2765.9,2765.0,0.5]
[1643746025217,1.52496087,2765.8,2765.0,0.5]
[1643746025413,1.01831484,2765.7,2765.0,0.5]
[1643746025613,1.5,2765.5,2765.0,0.5]
[1643746025813,1.5,2765.5,2764.3,0.25]
[1643746025814,6.8,2765.3,2764.3,0.25]
[1643746026014,6.8,2765.3,2763.8,0.1807]
[1643746026015,2.23968827,2765.2,2763.8,0.1807]
[1643746026213,0.94005365,2764.2,2763.8,0.1807]
[1643746026615,0.94005365,2764.2,2763.5,0.1807]
[1643746027215,0.32234583,2764.0,2763.5,0.1807]
[1643746028167,2.04880439,2763.9,2763.5,0.1807]
[1643746028368,0.1809,2763.9,2763.5,0.1807]
[1643746028773,0.77229428,2763.7,2763.5,0.1807]
[1643746029265,0.32234583,2764.0,2763.5,0.1807]
[1643746030466,0.1809,2764.7,2763.3,0.90449]
[1643746030668,0.1809,2764.7,2763.4,21.3607]
[1643746030867,0.83761484,2765.6,2763.4,21.3607]
[1643746030868,0.1807,2764.8,2763.9,0.0126502]
[1643746031074,0.2485,2765.9,2763.9,0.0126502]
[1643746031075,0.1807,2765.8,2764.0,0.7007]
[1643746031272,1.52582273,2765.7,2764.2,21.18]
[1643746031473,0.70733407,2765.5,2764.6,0.89793669]
[1643746031702,0.1807,2765.6,2764.6,1.89793669]
[1643746031903,0.2485,2765.9,2764.8,21.18]
[1643746032203,0.2485,2765.9,2765.0,21.18]
[1643746032399,0.2485,2765.9,2765.1,21.49889997]
[1643746032603,0.2485,2765.9,2765.3,0.90373]
[1643746032808,0.2485,2765.9,2765.7,21.48]
[1643746033005,0.2485,2765.9,2765.8,2.48439718]
[1643746033206,0.2485,2765.9,2765.8,3.37572339]
[1643746033405,0.2485,2765.9,2765.8,1.1807]
[1643746033807,0.2485,2765.9,2765.8,0.1807]
[1643746034007,0.2485,2765.9,2765.8,2.38517761]
[1643746034206,0.2485,2765.9,2765.8,23.56517761]
[1643746034408,0.1807,2767.0,2765.9,0.90353]
[1643746034609,1.52514149,2766.9,2766.3,22.11510369]
[1643746034812,0.79967782,2767.3,2766.4,2.49222993]
[1643746035008,0.42842418,2767.1,2766.4,3.49222993]
[1643746035208,0.42842418,2767.1,2766.4,3.79222993]
[1643746035455,0.42842418,2767.1,2766.5,0.52]
[1643746035650,0.42842418,2767.1,2766.6,2.33426265]
[1643746035852,0.42842418,2767.1,2766.6,1.4807]
[1643746036655,1.52504869,2767.0,2766.6,0.1807]
[1643746036858,1.52504869,2767.0,2766.3,0.1807]
[1643746037255,1.70574869,2767.0,2766.1,0.4807]
[1643746037460,1.70574869,2767.0,2766.0,0.1807]
[1643746037461,0.7191629,2766.4,2766.0,0.1807]
[1643746037656,0.36269827,2766.1,2765.7,0.1807]
[1643746037860,0.36269827,2766.1,2765.5,0.25]
[1643746038065,0.36269827,2766.1,2765.2,0.1807]
[1643746038360,0.36269827,2766.1,2765.2,21.3607]
[1643746038560,0.36269827,2766.1,2765.2,0.1807]
[1643746038760,0.1807,2766.3,2765.2,0.1807]
[1643746038761,0.37663639,2765.6,2765.2,0.1807]
[1643746038962,0.37663639,2765.6,2764.8,0.90401]
[1643746038963,0.37663639,2765.6,2764.8,0.1807]
[1643746039399,0.1807,2765.5,2764.5,0.1807]
[1643746039799,0.1807,2765.5,2764.6,0.88980377]
[1643746040001,0.1807,2765.5,2764.5,21.3607]
[1643746040002,0.3720387,2765.1,2764.5,21.6607]
[1643746040200,0.3720387,2765.1,2764.6,22.18]
[1643746040399,0.3720387,2765.1,2764.6,1.0]
[1643746040806,0.3720387,2765.1,2764.5,1.4807]
[1643746041005,0.1807,2765.8,2764.5,1.4807]
[1643746041206,0.1807,2765.8,2764.8,1.60699904]
[1643746041406,0.1807,2765.8,2764.8,0.90402]
[1643746041605,0.1807,2765.8,2764.8,1.20402]
[1643746042506,0.33736338,2765.1,2764.8,1.20402]
[1643746042706,0.85126158,2765.4,2764.8,1.20402]
[1643746043155,0.1807,2766.4,2764.9,21.18]
[1643746043352,1.82551387,2766.3,2765.1,0.90392]
[1643746043553,0.1807,2766.2,2765.1,0.90392]
[1643746043853,0.1807,2766.2,2765.1,1.20392]
[1643746044052,2.30356902,2766.5,2765.1,1.20392]
[1643746044253,0.90143388,2765.8,2765.1,1.20392]
[1643746044551,0.90143388,2765.8,2764.9,21.18]
[1643746044754,0.1807,2765.7,2764.9,21.18]
[1643746044957,2.26362282,2765.7,2764.5,1.1807]
[1643746045154,2.26362282,2765.7,2764.6,1.3]
[1643746045155,0.1807,2765.7,2764.6,1.3]
[1643746045354,0.1807,2765.7,2764.7,0.1807]
[1643746045355,0.77810419,2765.3,2764.7,0.1807]
[1643746045553,0.1807,2766.3,2764.7,0.1807]
[1643746045758,1.82558339,2766.2,2764.7,0.1807]
[1643746045954,1.70628339,2766.1,2764.7,0.1807]
[1643746046153,1.52558339,2766.0,2764.7,0.1807]
[1643746046353,0.1807,2765.9,2764.7,0.1807]
[1643746046599,0.78857381,2765.6,2764.7,0.1807]
[1643746047006,0.43758098,2764.8,2764.7,0.1807]
[1643746047305,0.43758098,2764.8,2764.7,6.3807]
[1643746047503,0.43758098,2764.8,2764.7,6.2]
[1643746047704,0.78857381,2765.6,2764.7,7.5]
[1643746048310,0.78857381,2765.6,2764.8,1.0]
[1643746048506,0.78857381,2765.6,2764.8,1.1807]
[1643746048706,0.4219067,2765.1,2764.8,1.1807]
[1643746049408,0.4219067,2765.1,2764.8,0.1807]
[1643746049607,0.78857381,2765.6,2764.8,0.1807]
[1643746050009,0.78857381,2765.6,2764.8,1.1807]
[1643746050210,0.78857381,2765.6,2764.8,0.1807]
[1643746050448,0.72341569,2765.1,2764.8,0.1807]
[1643746050657,0.72341569,2765.1,2764.3,1.0]
[1643746050658,0.34655273,2765.0,2764.6,0.1807]
[1643746050857,0.34655273,2765.0,2764.5,0.3]
[1643746051055,0.19277227,2766.1,2764.5,0.3]
[1643746051056,0.1807,2765.9,2764.6,2.42052401]
[1643746051260,6.07735412,2766.6,2764.6,2.42052401]
[1643746051261,0.1807,2766.0,2764.9,1.0]
[1643746051468,0.1807,2766.0,2764.7,21.37339947]
[1643746051469,0.1807,2766.9,2765.0,23.3607]
[1643746051654,1.52538861,2766.8,2765.1,21.614]
[1643746051853,1.70608861,2766.7,2765.3,0.01289576]
[1643746052052,0.44139468,2766.1,2765.5,0.86040409]
[1643746052257,0.44139468,2766.1,2765.6,21.3607]
[1643746052454,0.44139468,2766.1,2765.6,21.6607]
[1643746052653,0.1807,2767.1,2765.7,22.18]
[1643746052856,1.52509646,2767.0,2766.0,0.90366]
[1643746053054,0.1807,2766.9,2766.1,0.434]